Cogmind - Beta 14 @@@ ROGUE MODE // 2024.09.02 @ 14:35:53 Player: UnifiBg Result: Destroyed by S-10 Pest with Light Assault Rifle Performance ------------- Evolutions (0) 0 Regions Visited (1) 200 Robots Destroyed (11) 55 Value Destroyed (100) 100 Prototype IDs (0) 0 Alien Tech Used (0) 0 Bonus (0) 0 TOTAL SCORE: 355 Bonus ------- None Cogmind --------- Core Integrity 0/250 Matter 288/300 Energy 123/125 System Corruption 0% Temperature Cool (0) Movement Rolling (100) Location -10/Materials Parts ------- > --- POWER (1) -------- Light Ion Engine > --- PROPULSION (2) --- Light Treads Compact Wheel > --- UTILITY (2) ------ Small Storage Unit Light Armor Plating > --- WEAPON (2) ------- Light Assault Rifle Light Assault Rifle > --- INVENTORY (8) ---- Seismic Detector Light Assault Rifle Light Assault Rifle Light Assault Rifle Light Assault Rifle Grenade Launcher Mining Laser Peak State ------------ > --- POWER ------------ Ion Engine > --- PROPULSION ------- Wheel Wheel > --- UTILITY ---------- Small Storage Unit Seismic Detector > --- WEAPON ----------- EM Pulse Gun Medium Laser > --- INVENTORY -------- Light Ion Engine Light Treads Light Treads Wheel Compact Wheel Compact Wheel Compact Wheel Medium Laser [Rating: 7] Favorites ----------- Power Ion Engine Engine Ion Engine Propulsion Wheel Treads Light Treads Wheel Wheel Utility Small Storage Unit Device Seismic Detector Storage Small Storage Unit Protection Light Armor Plating Weapon Medium Laser Energy Gun Medium Laser Ballistic Gun Light Assault Rifle Special Weapon Mining Laser Build | -11 -10 ------- Run | Yrd Mat Slots Evolved . | . . Power . | . . Propulsion . | . . Utility . | . . Weapon . | . . Parts Attached 20 | 8 12 Power 4 | 1 3 Engine 4 | 1 3 Core . | . . Reactor . | . . Propulsion 6 | 3 3 Treads 1 | . 1 Leg . | . . Wheel 5 | 3 2 Hover . | . . Flight . | . . Utility 3 | 2 1 Device 1 | 1 . Storage 1 | 1 . Processor . | . . Hackware . | . . Protection 1 | . 1 Artifact . | . . Weapon 7 | 2 5 Energy Gun 3 | 2 1 Energy Cannon . | . . Ballistic Gun 3 | . 3 Ballistic Cannon . | . . Launcher . | . . Special Weapon 1 | . 1 Impact Weapon . | . . Slashing Weapon . | . . Piercing Weapon . | . . Special Melee Weapon . | . . Unidentified Prototypes . | . . Parts Lost 5 | . 5 Power 2 | . 2 Propulsion 3 | . 3 Utility . | . . Weapon . | . . Highest Loss Streak 3 | . 3 To Critical Strikes . | . . Average Slot Usage (%) 99 | . 99 Engine 13 | . 13 Treads 2 | . 2 Wheel 25 | . 25 Device 12 | . 12 Storage 14 | . 14 Protection 1 | . 1 Energy Gun 15 | . 15 Ballistic Gun 8 | . 8 Special Weapon 3 | . 3 Peak Build Rating 7 | 7 7 Average Rating 6 | 5 6 On Entrance 3 | . 7 Naked Turns . | . . Heaviest Build 15 | 15 15 Greatest Support 26 | 26 20 Greatest Overweight (x) 1 | 1 . Average Overweight (x) . | . . Largest Inventory Capacity 8 | 8 8 Average Capacity 7 | 7 8 Most Carried 8 | 8 8 Average Carried 6 | 5 7 Final Capacity 8 | 8 8 Final Carried 8 | 8 7 Class Distribution -------------------- 100% | Mutant Dominant Class ---------------- Mutant | -10/Materials Resources | -11 -10 ----------- Run | Yrd Mat Matter Collected 409 | 280 129 Remotely . | . . Salvage Created 259 | 130 129 Parts 18 | 6 12 Haulers Intercepted . | . . Recyclers Shooed . | . . Parts Field Recycled . | . . Retrieved Matter . | . . Parts Self-Destructed . | . . Prevented . | . . Kills | -11 -10 ------- Run | Yrd Mat Combat Hostiles Destroyed 8 | . 8 Guns 8 | . 8 Classes Destroyed 3 | 2 1 Tunneler 2 | 2 . Recycler 1 | 1 . Swarmer 8 | . 8 Best Kill Streak 5 | 2 5 Combat Bots Only 5 | . 5 Max Kills in Single Turn 1 | 1 1 Gunslinging . | . . Exploded . | . . Melee . | . . Uniques/NPCs Destroyed . | . . Combat | -11 -10 -------- Run | Yrd Mat Hostile Shots Fired 136 | . 136 Missed 21 | . 21 Damage Taken 949 | 24 925 Core 256 | . 256 Absorbed by Shields . | . . Core Remaining (%) 100 | 100 . Volleys Fired 53 | 6 47 Largest 2 | 2 2 Hottest 100 | 90 100 Shots Fired 98 | 12 86 Gun 90 | 12 78 Cannon . | . . Launcher . | . . Special 8 | . 8 Kinetic 46 | . 46 Thermal 46 | 6 40 Explosive . | . . Electromagnetic 6 | 6 . Robot Hit Streak 6 | 4 6 Robot Miss Streak 3 | 1 3 Penetration Max . | . . Secondary Targets 2 | . 2 Max Gunslinging Chain 1 | . 1 Shots Hit Robots 47 | 8 39 Core Hits 16 | 4 12 Critical Kills . | . . Critical Parts Destroyed . | . . Critical Strikes 3 | . 3 Burn 3 | . 3 Melee Attacks . | . . Impact . | . . Slashing . | . . Piercing . | . . Sneak Attacks . | . . Combat Hostiles . | . . Follow-up Attacks . | . . Damage Inflicted 557 | 136 421 Guns 525 | 104 421 Cannons . | . . Explosions 32 | 32 . Melee . | . . Ramming . | . . Kinetic 185 | . 185 Thermal 317 | 81 236 Explosive . | . . Electromagnetic 55 | 55 . Impact . | . . Slashing . | . . Piercing . | . . Highest Corruption . | . . Average Corruption . | . . Corruption Purged . | . . Corruption Blocked . | . . Overload Shots . | . . Overflow Damage 20 | 20 . Projectiles . | . . Explosions 20 | 20 . Melee . | . . Knockbacks . | . . Impact . | . . Kinetic . | . . Secondary . | . . Self-Inflicted Damage 24 | 24 . Shots 1 | 1 . Rammed . | . . Targets Rammed . | . . Kicked . | . . Crushed . | . . Highest Temperature 431 | 80 431 Average Temperature 118 | 33 135 Received Heat Transfer . | . . Effects 1 | . 1 Damage (major) 1 | . 1 Siege Activations . | . . Robots Corrupted . | . . Combat Hostiles . | . . Parts Fried . | . . Impact Corruptions . | . . Robots Melted . | . . Combat Hostiles . | . . Parts Melted 1 | . 1 Heat Transferred 1123 | 198 925 Parts Sabotaged . | . . Parts Stolen . | . . Parts Stripped . | . . Power Chain Reactions 1 | 1 . Alert | -11 -10 ------- Run | Yrd Mat Peak Influence 204 | 15 204 Initial 9 | . 9 Average 82 | 5 98 Maximum Alert Level 1 | . 1 Low Security (%) 97 | 100 97 Level 1 2 | . 2 Level 2 . | . . Level 3 . | . . Level 4 . | . . Level 5 . | . . High Security . | . . Max Security . | . . Squads Dispatched . | . . Investigation . | . . Extermination . | . . Reinforcement . | . . Assault . | . . Garrison . | . . Intercept . | . . Searches Triggered . | . . Construction Impeded . | . . Haulers Reinforced . | . . Active Scanning Responses . | . . Cargo Convoy Interrupts . | . . Stealth | -11 -10 --------- Run | Yrd Mat Distress Signals 1 | . 1 Communications Jammed . | . . Distress Signals . | . . Times Spotted 19 | . 19 Peak Tracking Total 7 | . 7 Tactical Retreats 1 | . 1 Traps | -11 -10 ------- Run | Yrd Mat Traps Triggered . | . . Indirectly . | . . Trap Hack Attempts . | . . Triggered . | . . Disarmed . | . . Reprogrammed . | . . Reused . | . . Traps Extracted . | . . Installed . | . . Triggered . | . . Machines | -11 -10 ---------- Run | Yrd Mat Machines Disabled . | . . Max in Single Turn . | . . Machines Repaired . | . . Machines Dismantled . | . . Machines Sabotaged . | . . Overloaded Fab Kills . | . . Hacking | -11 -10 --------- Run | Yrd Mat Machines Accessed 3 | . 3 Terminals 3 | . 3 Fabricators . | . . Repair Stations . | . . Recycling Units . | . . Scanalyzers . | . . Garrison Access . | . . Total Hacks 9 | . 9 Successful 7 | . 7 Failed 2 | . 2 Catastrophic . | . . Database Lockouts . | . . Manual 9 | . 9 Terminals 9 | . 9 Fabricators . | . . Repair Stations . | . . Recycling Units . | . . Scanalyzers . | . . Garrison Access . | . . Terminal Hacks 1 | . 1 Unreport Threat 1 | . 1 Fabricator Hacks . | . . Repair Station Hacks . | . . Recycling Unit Hacks . | . . Scanalyzer . | . . Garrison Access Hacks . | . . Unauthorized Hacks 6 | . 6 Terminals 6 | . 6 Botnet 3 | . 3 Skim 3 | . 3 Fabricators . | . . Repair Stations . | . . Recycling Units . | . . Scanalyzers . | . . Garrison Access . | . . Data Cores Recovered . | . . Used . | . . Hacking Detections 3 | . 3 Full Trace Events . | . . Feedback Events . | . . Feedback Blocked . | . . Robot Schematics Acquired . | . . Robots Built . | . . Authchips . | . . Time . | . . Total Robot Build Rating . | . . Part Schematics Acquired . | . . Parts Built . | . . Authchips . | . . Time . | . . Total Part Build Rating . | . . Parts Repaired . | . . Time . | . . Parts Recycled . | . . Recycled Matter . | . . Retrieved Matter . | . . Retrieved Components . | . . Parts Scanalyzed . | . . Part Schematics Acquired . | . . Parts Damaged . | . . Bothacking | -11 -10 ------------ Run | Yrd Mat Used RIF Installer . | . . Robots Hacked . | . . Non-combat . | . . Combat . | . . Robot Hacks Applied . | . . Relay Couplers Released . | . . Fabnet Peak Effective % . | . . Robots Rewired . | . . Allies Hacked . | . . Hacks Repelled . | . . Allies | -11 -10 -------- Run | Yrd Mat Total Allies . | . . Largest Group . | . . Highest-Rated Group . | . . Highest-Rated Ally . | . . Total Orders . | . . Ally Attacks . | . . Total Damage . | . . Kills . | . . Allies Corrupted . | . . Allies Melted . | . . Intel | -11 -10 ------- Run | Yrd Mat Robot Analysis Total . | . . Derelict Logs Recovered . | . . Drone Launches . | . . Drone Recoveries . | . . Exploration | -11 -10 ------------- Run | Yrd Mat Turns Passed 640 | 112 528 Spaces Moved 505 | 86 419 Core 1 | 1 . Treads . | . . Legs . | . . Wheels 504 | 85 419 Hover . | . . Flight . | . . Fastest Speed 50 | 50 80 Average Speed 83 | 86 82 Slowest Speed 100 | 95 100 Overloaded Moves . | . . Propulsion Burnouts . | . . Robots Hopped . | . . Cave-ins Triggered . | . . Exploration Rate (%) 38 | 5 71 Regions Visited 1 Branch Regions . Pre-discovered Areas . | . . Known Exits Taken . | . . Unknown Exits Taken 1 | 1 . Scrap Searched . | . . Spaces Dug 6 | . 6 Terrain Destroyed 15 | 7 8 Melee . | . . Projectile 8 | . 8 AOE 7 | 7 . Terrain Rammed . | . . Walls Destroyed . | . . Machines Disabled . | . . Actions | -11 -10 --------- Run | Yrd Mat Total 616 | 108 508 Wait 16 | . 16 Move 504 | 85 419 Hop . | . . Pick Up 16 | 9 7 Fast Attach 8 | 6 2 Attach 5 | 1 4 Detach . | . . Swap 7 | 1 6 Drop 7 | . 7 Fire 53 | 6 47 Melee . | . . Ram . | . . Kick . | . . Crush . | . . Escape Stasis . | . . Rewire . | . . Trap . | . . Miscellaneous . | . . Route ------- -11/Scrapyard -10/Materials (discovered 2 exits: [*Mat] / [*Min]) History --------- Turn | Location | Event 27 | -11/Scrapyard | Discovered new exit (range 15) 113 | -11/Scrapyard | Entered Materials 137 | -10/Materials | Discovered new exit (range 16) 258 | -10/Materials | Core integrity fell below 50% 301 | -10/Materials | Build established: Mutant 378 | -10/Materials | Discovered new exit (range 9) 545 | -10/Materials | Core integrity fell below 20% 562 | -10/Materials | Lost 3 parts (1p2n) 641 | -10/Materials | Destroyed by S-10 Pest with Light Assault Rifle Last Messages --------------- 00563_ Acquired 20 matter. 00563_ R-06 Scavenger collects Flight Unit. 00570_ Acquired 15 matter. 00586_ Connecting with Terminal... >>Trojan(Skim) Trojan loaded successfully. Testing... Terminal linked with 2 systems. Please expand to 2 more systems! >>Trojan(Botnet) Trojan loaded successfully. Testing... Terminal linked with 2 systems. Awaiting botnet instructions. >>Alert(Purge) Purged threat record, alert level lowered. 00611_ Acquired 17 matter. 00613_ Acquired 15 matter. 00616_ Acquired 12 matter. 00617_ Acquired 15 matter. Map ----- +----------------------------------------------------+ | | | | | | | ???????????????????????????????????????????#### | | ???????????????????????????????????????????# | | ???????????????????????????????????????????# | | ???????????????????????????????????????????# | | ??????????????????################?????????# | | ??????????????????# #?????????# | | ??????????????????# = #?????????# | | ??????????????????# #?????????# | | ??????????????????## ####### #?????????# | | ???????????????????# #?????# #?????????# | | ???????????????????# #?????# #?????????#### | | ???????????????????# #?????# ############## | | ???????????????????# #?????# | | ???????????????????# #?????# | | ???????????????????# #?????# | | ???????????????????# #?????### ############## | | ???????????????????# #???????# # ## | | ???????????????????# #???????# # """ """ #? | | ?????????######????# #???????# # """ """ #? | | ?????????# ?? ## #???????# # """ """ #? | | ?????????# ""? ## #???????# # """ #? | | ?????????# """ ## #???????# # """ #? | | ?????????#/ """ ## @#???????# # #? | | ?????????# ## ss######### #+############ | | ?????????# """ ## | | ?????????# """ ## s % | | ?????????# """ ## | | ?????????# ## ###########+## ###### | | ????????#######+### ## # #????? | | ?######## " ## """ """ #? #?????? | | ?# # "T + """ """ #? #?????? | | ?# # k ## """ """ #?? #?????? | | ?# + ####### ## #???#?????? | | ?# """ # #########+###############?????????? | | ?# """ # ## #??????????????????? | | ?# """ # ## #??????????????????? | | ?######## ## ! ######?????????????? | | ?# # / # #?????????????? | | ?# # ## + #?????????????? | | ?# + ## # #?????? ?????? | | ?# # ################ #????? ?????? | | ?# # #????# ## #???? #?????? | | ?# ?# #????# # ##### ##"???? | | ?######## #????# # ???? | | ?# # #???## + ??? | | ?# # #???#" # """ """?? ? | | ?# "" + #???#T # """ """ ?? | +----------------------------------------------------+ Best States ------------- Heat Dissipation 25 Energy Generation 10 Energy Capacity 250 Matter Stores 300 Matter Capacity 300 Sight Range 16 Terrain Scan Density 10 Armor Coverage 150 Evasion (%) 44 Item Schematics ----------------- None Robot Schematics ------------------ None Fabricated ------------ Nothing Alien Tech Used ----------------- None Achievements -------------- None Challenges ------------ None Game ------ Seed SwordSupersonicEdition Manual? 0 Play Time 00:08:52 Cumulative 29.5 hours Start 2024.09.02 @ 14:28:14 End 2024.09.02 @ 14:35:53 Sessions 1 Manual Loads 0 Difficulty Rogue Special Mode None Game No. 33 Rogue 33 Adventurer 0 Explorer 0 Win Type - Total 0 Types 0/0/0/0/0/0/0/0/0 Lore% 17 Gallery% 29 Achievement% 23 Wizard Run 0 Options --------- Layout 2 ASCII 0 Keyboard 1 Movement Arrows Keybinds 0 Fullscreen 2 Font 20/SmallcapsGlow Map View 56x54 Zoom Use 0% Tactical HUD 1 Map Filters NONE Filters NONE Steam X RUN: 645790fd-5036-46cf-a8ef-2fba3d916432